bitfinex-derivatives/quotes_SOLF0:USTF0_20241127
["timestamp","ask_amount","ask_price","bid_price","bid_amount"]
[1732739392872,3.8747,240.94,240.75,6.36036361]
[1732739393074,6.36036361,240.83,240.75,6.36036361]
[1732739393275,2.0731,240.81,240.75,6.36036361]
[1732739393472,6.36036361,240.86,240.77,6.36036361]
[1732739393677,7.42915371,240.85,240.78,2.16]
[1732739393871,6.36036361,240.86,240.78,2.16]
[1732739394097,6.36036361,240.84,240.78,2.16]
[1732739394978,2.0731,240.81,240.78,2.16]
[1732739396078,2.0732,240.8,240.78,2.16]
[1732739396275,6.36036361,240.84,240.78,2.16]
[1732739396475,6.36036361,240.8,240.69,1.31]
[1732739396779,6.36036361,240.8,240.71,6.36036361]
[1732739397172,2.0734,240.78,240.71,6.36036361]
[1732739397378,6.36036361,240.8,240.71,6.36036361]
[1732739398471,2.0733,240.79,240.71,6.36036361]
[1732739398670,2.0733,240.79,240.73,6.36036361]
[1732739400878,6.36036361,240.82,240.73,6.36036361]
[1732739401385,2.0733,240.78,240.73,6.36036361]
[1732739401975,2.0733,240.78,240.7,2.16]
[1732739402177,6.36036361,240.8,240.7,2.16]
[1732739402379,12.47,240.89,240.66,2.0743]
[1732739402583,6.36036361,240.78,240.69,6.36036361]
[1732739403482,6.36036361,240.78,240.7,2.16]
[1732739404085,2.0737,240.74,240.7,2.16]
[1732739405087,6.36036361,240.8,240.71,6.36036361]
[1732739405484,2.0735,240.76,240.71,6.36036361]
[1732739406188,2.0736,240.75,240.71,6.36036361]
[1732739406682,7.58896361,240.85,240.73,6.36036361]
[1732739406882,6.36036361,240.88,240.71,1.3457]
[1732739407083,6.36036361,240.86,240.76,6.36036361]
[1732739407286,2.0732,240.8,240.77,2.16]
[1732739407504,6.36036361,240.84,240.77,2.16]
[1732739407884,2.073,240.82,240.77,2.16]
[1732739408084,2.073,240.82,240.78,6.36036361]
[1732739408279,6.36036361,240.88,240.8,6.36036361]
[1732739408484,7.42560609,240.87,240.8,6.36036361]
[1732739408789,6.36036361,240.88,240.8,6.36036361]
[1732739409084,6.36036361,240.86,240.77,2.16]
[1732739409387,6.36036361,240.84,240.78,2.16]
[1732739409590,2.0731,240.81,240.79,2.16]
[1732739409784,6.36036361,240.84,240.73,1.3074]
[1732739409989,1.3056,240.89,240.47,200.32288958]
[1732739409990,2.0736,240.76,240.7,6.36036361]
[1732739410188,2.0736,240.76,240.72,6.36036361]
[1732739411284,6.36036361,240.8,240.72,6.36036361]
[1732739411485,2.0734,240.77,240.72,6.36036361]
[1732739411686,6.36036361,240.82,240.74,6.36036361]
[1732739412090,6.36036361,240.85,240.76,6.36036361]
[1732739412392,6.36036361,240.85,240.77,2.16]
[1732739412393,7.42796205,240.84,240.77,2.16]
[1732739412691,6.36036361,240.85,240.77,2.16]
[1732739412891,7.42765623,240.84,240.77,2.16]
[1732739413091,2.0732,240.8,240.77,2.16]
[1732739414986,8.43326361,240.83,240.77,2.16]
[1732739415188,6.36036361,240.83,240.77,2.16]
[1732739415590,1.3056,240.89,240.77,2.16]
[1732739415789,6.36036361,240.84,240.77,2.16]
[1732739415986,7.42809323,240.83,240.77,2.16]
[1732739416186,6.36036361,240.84,240.77,2.16]
[1732739416787,1.3056,240.89,240.77,2.16]
[1732739416985,7.42777154,240.88,240.77,2.16]
[1732739417192,2.0733,240.78,240.77,2.16]
[1732739417693,6.36036361,240.83,240.77,2.16]
[1732739418681,1.3056,240.89,240.77,2.16]
[1732739418884,6.36036361,240.84,240.77,2.16]
[1732739419083,7.42793681,240.83,240.77,2.16]
[1732739419285,6.36036361,240.84,240.77,2.16]
[1732739419895,6.36036361,240.84,240.71,2.0739]
[1732739420095,6.36036361,240.79,240.7,6.36036361]
[1732739420293,6.36036361,240.79,240.72,2.16]
[1732739421495,2.0734,240.77,240.72,2.16]
[1732739421691,6.36036361,240.79,240.72,2.16]
[1732739422297,2.0737,240.75,240.72,2.16]
[1732739422491,6.36036361,240.77,240.69,48.47398234]
[1732739422696,6.36036361,240.73,240.7,2.16]
[1732739422895,6.36036361,240.73,240.65,6.36036361]
[1732739423096,6.36036361,240.73,240.66,2.16]
[1732739423396,6.36036361,240.75,240.66,2.16]
[1732739423590,7.87394665,240.74,240.66,2.16]
[1732739423896,6.36036361,240.73,240.49,5.72012728]
[1732739424193,6.36036361,240.73,240.63,6.36036361]
[1732739424398,2.16,240.8,240.65,6.36036361]
[1732739424694,6.36036361,240.78,240.66,2.16]
[1732739424899,15.30483886,240.77,240.67,2.16]
[1732739425101,7.87391638,240.76,240.69,6.36036361]
[1732739425395,7.87391638,240.75,240.7,2.16]
[1732739425599,7.87391638,240.74,240.7,2.16]
[1732739425796,6.36036361,240.78,240.7,2.16]
[1732739426100,15.30416974,240.77,240.7,2.16]
[1732739426298,7.87354558,240.76,240.7,2.16]
[1732739426498,2.0737,240.74,240.7,2.16]
[1732739426802,8.98566361,240.82,240.73,6.36036361]
[1732739426994,2.0732,240.79,240.75,6.36036361]
[1732739427198,7.87397569,240.78,240.76,2.16]
[1732739427399,2.0732,240.79,240.76,2.16]
[1732739427600,7.87469466,240.78,240.76,2.16]
[1732739427803,2.0732,240.79,240.76,2.16]
[1732739428099,2.0733,240.78,240.77,2.16]
[1732739428300,9.9496992,240.78,240.77,2.16]
[1732739428502,7.8763992,240.78,240.77,2.16]
[1732739428705,7.8763992,240.81,240.73,6.36036361]
[1732739428999,21.67101924,240.8,240.74,2.16]
[1732739429203,2.0734,240.77,240.75,2.16]
[1732739429403,7.8763992,240.76,240.75,2.16]
[1732739429604,7.8763992,240.79,240.75,2.16]
[1732739429799,2.0735,240.76,240.75,2.16]
[1732739429999,7.8763992,240.76,240.72,6.36036361]
[1732739430304,6.36036361,240.8,240.73,2.16]
[1732739430523,15.31836238,240.79,240.73,2.16]
[1732739430699,7.88072558,240.78,240.73,2.16]
[1732739430898,6.36036361,240.8,240.73,2.16]
[1732739430899,7.88072558,240.77,240.73,2.16]
[1732739431099,7.88072558,240.76,240.73,2.16]
[1732739431406,6.36036361,240.8,240.73,2.16]
[1732739431702,15.32059208,240.79,240.73,2.16]
[1732739432006,7.88187337,240.78,240.73,2.16]
[1732739432196,6.36036361,240.8,240.73,2.16]
[1732739432197,7.88187337,240.77,240.73,2.16]
[1732739432401,7.88187337,240.76,240.73,2.16]
[1732739432595,2.0735,240.76,240.73,2.16]
[1732739432896,7.88285465,240.75,240.73,2.16]
[1732739433098,6.36036361,240.8,240.73,2.16]
[1732739433401,15.32291041,240.79,240.73,2.16]
[1732739433700,6.36036361,240.8,240.73,2.16]
[1732739433701,7.88302185,240.78,240.73,2.16]
[1732739434104,7.88302185,240.77,240.73,2.16]
[1732739434306,7.88302185,240.76,240.73,2.16]
[1732739434506,6.36036361,240.8,240.73,2.16]
[1732739434705,2.0735,240.76,240.73,2.16]
[1732739435108,6.36036361,240.79,240.73,2.16]
[1732739435305,2.0737,240.74,240.65,1.3031]
[1732739435505,6.36036361,240.77,240.68,6.36036361]
[1732739435704,7.88370362,240.76,240.68,6.36036361]
[1732739435902,7.88370362,240.75,240.68,6.36036361]
[1732739436104,2.0736,240.75,240.68,6.36036361]
[1732739436306,6.36036361,240.77,240.68,6.36036361]
[1732739436503,6.36036361,240.75,240.65,1.3031]
[1732739436707,2.0739,240.72,240.66,8.52036361]
[1732739437221,6.36036361,240.77,240.68,6.36036361]
[1732739437410,7.88444786,240.76,240.7,6.36036361]
[1732739437702,7.88444786,240.75,240.7,6.36036361]
[1732739437908,6.36036361,240.79,240.7,6.36036361]
[1732739438107,7.88395261,240.78,240.72,6.36036361]
[1732739438312,7.88395261,240.77,240.73,2.16]
[1732739438608,2.0734,240.78,240.73,2.16]
[1732739438811,7.88417289,240.77,240.73,2.16]
[1732739439013,2.0734,240.77,240.73,2.16]
[1732739439309,2.4478,240.87,240.73,2.16]
[1732739439310,7.88438873,240.76,240.73,2.16]
[1732739439501,2.0736,240.75,240.73,2.16]
[1732739440005,6.36036361,240.76,240.73,2.16]
[1732739440309,9.95854632,240.75,240.73,2.16]
[1732739440515,2.0736,240.75,240.73,2.16]
[1732739441015,2.0737,240.74,240.73,2.16]
[1732739441409,9.93126674,240.8,240.73,2.16]
[1732739441612,2.0737,240.74,240.73,2.16]
[1732739442110,9.93126674,240.81,240.73,2.16]
[1732739442313,2.0737,240.74,240.73,2.16]
[1732739442914,2.0741,240.7,240.64,9.93126674]
[1732739443111,9.93126674,240.75,240.62,4.4357533]
[1732739443415,15.32973059,240.74,240.63,2.16]
[1732739443611,7.8865102,240.73,240.63,2.16]
[1732739443815,7.8865102,240.74,240.63,2.16]
[1732739444009,7.8865102,240.72,240.63,2.16]
[1732739444213,2.0745,240.65,240.58,9.93126674]
[1732739444513,1.231,240.71,240.59,4.2349]
[1732739444715,7.88559688,240.7,240.59,4.2349]
[1732739445015,2.0743,240.67,240.59,4.2349]
[1732739445410,2.0743,240.67,240.6,2.0748]
[1732739446113,2.0743,240.67,240.61,2.0748]
[1732739447327,1.231,240.71,240.63,2.0746]
[1732739447328,2.074,240.7,240.63,2.0746]
[1732739448810,12.47,240.89,240.69,9.93126674]
[1732739449016,13.87606674,240.88,240.7,2.16]
[1732739449416,13.87606674,240.88,240.7,4.234]
[1732739449616,13.87606674,240.88,240.7,2.16]
[1732739450513,2.0733,240.79,240.71,2.0738]
[1732739450718,13.87606674,240.88,240.7,2.16]
[1732739450917,2.0732,240.79,240.71,2.0739]
[1732739452017,13.87606674,240.88,240.7,2.16]
[1732739452313,2.0735,240.76,240.7,2.16]
[1732739453017,2.0736,240.75,240.7,2.16]
[1732739453416,9.93126674,240.84,240.69,9.93126674]
[1732739453714,15.30576199,240.83,240.7,2.16]
[1732739453909,15.30576199,240.82,240.7,2.16]
[1732739454110,2.0734,240.77,240.71,2.16]
[1732739454513,9.93126674,240.84,240.71,2.16]
[1732739454712,2.0733,240.79,240.71,2.16]
[1732739455115,9.93126674,240.84,240.71,2.16]
[1732739455316,2.0733,240.79,240.71,4.2339]
[1732739455819,2.0733,240.78,240.71,4.2339]
[1732739456720,9.93126674,240.84,240.72,2.0738]
[1732739456721,2.0732,240.8,240.72,2.0738]
[1732739456916,9.93126674,240.84,240.72,2.0738]
[1732739457110,15.3068451,240.83,240.72,2.0738]
[1732739457310,9.93126674,240.84,240.72,2.0738]
[1732739457311,7.87472432,240.82,240.72,2.0738]
[1732739457514,7.87472432,240.81,240.72,2.0738]
[1732739457816,7.87472432,240.8,240.72,2.0738]
[1732739458016,2.0733,240.79,240.72,2.0738]
[1732739458519,2.0733,240.78,240.71,4.2339]
[1732739459313,9.93126674,240.84,240.69,9.93126674]
[1732739459519,15.30871159,240.83,240.66,9.93126674]
[1732739459718,9.93126674,240.8,240.67,2.16]
[1732739459919,10.40818137,240.79,240.67,2.16]
[1732739460122,7.87578137,240.78,240.67,2.16]
[1732739460625,2.0737,240.74,240.67,4.2342]
[1732739460821,2.5324,240.79,240.67,2.16]
[1732739461022,7.87645508,240.78,240.67,2.16]
[1732739461219,2.5324,240.79,240.68,2.0742]
[1732739461420,7.8765108,240.78,240.69,2.16]
[1732739461621,2.5324,240.79,240.69,2.16]
[1732739461822,2.0735,240.76,240.69,2.16]
[1732739462021,3.819,240.79,240.69,2.16]
[1732739462324,2.0736,240.75,240.69,4.2341]
[1732739462719,2.0736,240.75,240.69,2.16]
[1732739463320,2.0735,240.76,240.69,2.16]
[1732739463918,2.0736,240.75,240.69,2.16]
[1732739464122,3.7889,240.87,240.66,9.93126674]
[1732739464316,15.3145382,240.86,240.7,9.93126674]
[1732739464517,2.0731,240.81,240.74,2.0736]
[1732739464723,7.87894744,240.8,240.74,2.0736]
[1732739465026,7.87894744,240.79,240.71,2.16]
[1732739465323,2.0732,240.8,240.71,2.16]
[1732739465627,7.87792347,240.79,240.71,2.16]
[1732739465820,7.87804895,240.78,240.72,2.0737]
[1732739466024,2.0733,240.79,240.73,2.16]
[1732739466224,7.87804867,240.78,240.73,2.16]
[1732739466426,2.0733,240.79,240.73,2.16]
[1732739466725,2.0731,240.81,240.75,2.0736]
[1732739466930,7.87763872,240.8,240.75,2.0736]
[1732739467227,7.87763872,240.79,240.75,2.0736]
[1732739467421,7.87763872,240.79,240.77,2.0734]
[1732739467629,2.0729,240.83,240.77,2.0734]
[1732739467921,7.87678978,240.82,240.74,9.93126674]
[1732739468231,7.87678978,240.81,240.76,2.0735]
[1732739468526,1.2183,240.86,240.74,9.93126674]
[1732739468723,2.0731,240.81,240.75,2.0735]
[1732739469028,7.87665038,240.8,240.76,2.16]
[1732739469324,2.0731,240.81,240.76,2.16]
[1732739469530,7.87647841,240.8,240.76,4.2335]
[1732739469730,2.0731,240.81,240.76,4.2335]
[1732739469925,7.87650013,240.8,240.76,4.2335]
[1732739470128,2.0732,240.8,240.76,4.2335]
[1732739470529,2.0732,240.8,240.77,6.35126399]
[1732739470928,2.0731,240.81,240.77,8.42466399]
[1732739471129,7.87619157,240.8,240.77,8.42466399]
[1732739471425,7.56956399,240.86,240.77,6.35126399]
[1732739471728,2.0732,240.8,240.77,6.35126399]
[1732739472122,6.35126399,240.84,240.71,3.995]
[1732739472332,6.35126399,240.84,240.75,6.35126399]
[1732739472333,7.87594127,240.83,240.75,6.35126399]
[1732739472530,7.87594127,240.82,240.75,6.35126399]
[1732739472720,2.0734,240.78,240.75,6.35126399]
[1732739472921,6.35126399,240.84,240.75,6.35126399]
[1732739473125,7.87521697,240.83,240.75,6.35126399]
[1732739473424,2.0732,240.79,240.75,8.42486399]
[1732739474023,3.9308,240.91,240.75,6.35126399]
[1732739474226,3.9308,240.91,240.76,2.0735]
[1732739474227,6.35126399,240.85,240.76,2.0735]
[1732739474427,7.87467883,240.84,240.75,6.35126399]
[1732739474622,7.87467883,240.83,240.77,6.35126399]
[1732739474827,6.35126399,240.86,240.78,2.16]
[1732739475027,7.87295471,240.85,240.78,2.16]
[1732739475229,7.87295471,240.84,240.78,2.16]
[1732739475434,6.35126399,240.86,240.78,2.16]
[1732739475637,9.94423568,240.85,240.79,6.35126399]
[1732739475827,2.0728,240.85,240.79,6.35126399]
[1732739476226,2.0728,240.84,240.79,6.35126399]
[1732739477026,2.0726,240.87,240.81,6.35126399]
[1732739477232,2.5551,240.95,240.81,6.35126399]
[1732739477434,6.35126399,240.91,240.81,6.35126399]
[1732739477735,2.0725,240.88,240.81,6.35126399]
[1732739478136,6.35126399,240.91,240.81,6.35126399]
[1732739478348,6.35126399,240.91,240.81,8.42436399]
[1732739478637,7.86545112,240.9,240.81,6.35126399]
[1732739478839,7.86545112,240.89,240.81,6.35126399]
[1732739479140,7.86545112,240.88,240.81,6.35126399]
[1732739479333,6.35126399,240.91,240.81,6.35126399]
[1732739479639,2.0726,240.87,240.81,6.35126399]
[1732739480632,2.5551,240.95,240.85,6.35126399]
[1732739480834,4.1432,240.99,240.86,2.16]
[1732739480835,15.276402,240.94,240.86,2.16]
[1732739481036,15.276402,240.93,240.87,6.35126399]
[1732739481339,7.85877244,240.92,240.86,2.16]
[1732739481539,6.35126399,240.95,240.86,2.16]
[1732739481737,7.854291,240.94,240.86,2.16]
[1732739481935,7.854291,240.93,240.86,4.2326]
[1732739482136,6.35126399,240.94,240.86,2.16]
[1732739482336,7.84992583,240.93,240.86,2.16]
[1732739482536,2.0723,240.91,240.86,2.16]
[1732739482732,4.1432,240.99,240.86,2.16]
[1732739482936,6.35126399,240.92,240.87,2.16]
[1732739483135,3.7217,240.98,240.88,2.16]
[1732739483328,3.7217,240.98,240.89,2.16]
[1732739483329,6.35126399,240.95,240.89,2.16]
[1732739483527,7.84728642,240.94,240.9,2.16]
[1732739483833,2.0722,240.91,240.85,6.35126399]
[1732739484032,2.0722,240.91,240.86,2.16]
[1732739484435,2.0723,240.9,240.86,2.16]
[1732739484839,6.35126399,240.91,240.86,2.16]
[1732739485134,3.7217,240.98,240.87,2.16]
[1732739485327,6.35126399,240.88,240.71,6.02344293]
[1732739485529,6.35126399,240.86,240.78,6.35126399]
[1732739485736,6.35126399,240.86,240.79,2.16]
[1732739486029,6.35126399,240.86,240.8,2.16]
[1732739486230,2.073,240.82,240.81,2.16]
[1732739486436,9.92260024,240.91,240.81,2.16]
[1732739486636,9.92260024,240.88,240.81,2.16]
[1732739486841,3.8101,240.87,240.72,9.92260024]
[1732739487040,3.8101,240.87,240.73,2.16]
[1732739487241,3.8101,240.87,240.72,9.92260024]
[1732739487439,7.84516328,240.86,240.73,2.16]
[1732739487743,3.8101,240.87,240.73,2.16]
[1732739487938,2.0731,240.81,240.73,4.2337]
[1732739488157,3.8101,240.87,240.73,2.16]
[1732739488443,2.0731,240.81,240.73,4.2337]
[1732739489236,2.073,240.82,240.73,2.16]
[1732739490038,2.073,240.82,240.74,2.0737]
[1732739490640,2.0733,240.78,240.73,2.16]
[1732739491140,2.0735,240.77,240.73,2.16]
[1732739491344,3.8101,240.87,240.73,2.16]
[1732739491545,7.85765646,240.86,240.73,2.16]
[1732739491739,17.7802567,240.85,240.69,42.30260024]
[1732739492049,7.85765646,240.84,240.7,2.16]
[1732739492338,7.85765646,240.83,240.7,2.16]
[1732739493045,2.0731,240.81,240.72,9.92260024]
[1732739493745,2.0731,240.81,240.74,2.0736]
[1732739494041,2.0731,240.81,240.7,2.16]
[1732739494042,3.8101,240.87,240.76,9.92260024]
[1732739494244,7.86251878,240.86,240.77,2.16]
[1732739494544,2.073,240.82,240.77,2.16]
[1732739495445,4.1436,240.96,240.77,2.16]
[1732739495648,9.92260024,240.94,240.77,2.16]
[1732739495836,15.28493628,240.93,240.77,2.16]
[1732739496038,15.28493628,240.92,240.77,2.16]
[1732739496246,15.28493628,240.91,240.77,2.16]
[1732739496447,2.0729,240.84,240.77,4.2334]
[1732739497243,2.0727,240.86,240.79,2.0732]
[1732739498149,2.0724,240.89,240.8,12.08260024]
[1732739498354,2.0724,240.89,240.81,2.16]
[1732739498547,3.8395,240.95,240.81,2.16]
[1732739498747,2.0723,240.9,240.81,2.16]
[1732739498944,3.8395,240.95,240.84,9.92260024]
[1732739499141,7.86253051,240.94,240.84,9.92260024]
[1732739499346,7.86253051,240.93,240.84,9.92260024]
[1732739499650,3.8395,240.95,240.84,9.92260024]
[1732739499843,7.86154696,240.94,240.84,9.92260024]
[1732739500049,7.86154696,240.93,240.84,9.92260024]
[1732739500247,3.8395,240.95,240.84,9.92260024]
[1732739500443,7.86033547,240.94,240.84,9.92260024]
[1732739500643,2.0718,240.96,240.88,2.0724]
[1732739500847,9.92260024,241.01,240.89,2.16]
[1732739500848,12.47450024,241.01,240.89,2.16]
[1732739501054,15.27875284,241.0,240.89,2.16]
[1732739501255,15.27875284,240.99,240.78,4.40471253]
[1732739501453,9.92260024,240.97,240.79,2.16]
[1732739501667,9.92260024,240.97,240.74,1.3424]
[1732739501668,9.92260024,240.97,240.8,12.08260024]
[1732739501849,9.92260024,240.97,240.81,2.16]
[1732739501850,2.0722,240.91,240.81,2.16]
[1732739502442,2.0723,240.9,240.82,2.0729]
[1732739503151,9.92260024,240.97,240.85,2.0727]
[1732739503152,2.0722,240.92,240.85,2.0727]
[1732739503947,9.93024022,240.91,240.85,2.0727]
[1732739504144,2.0722,240.91,240.85,2.0727]
[1732739504450,2.0722,240.91,240.84,2.0728]
[1732739504750,2.0722,240.91,240.84,9.92260024]
[1732739505949,12.47,241.09,240.9,2.0723]
[1732739506143,2.5327,241.04,240.91,2.16]
[1732739506349,15.27218375,241.03,240.91,2.16]
[1732739506549,15.27218375,241.02,240.91,2.16]
[1732739506853,15.27218375,241.01,240.91,2.16]
[1732739507061,2.0719,240.95,240.91,2.16]
[1732739508560,2.5327,241.04,240.91,2.16]
[1732739508561,2.0718,240.96,240.91,2.16]
[1732739508760,7.85562631,240.95,240.91,2.16]
[1732739508952,2.0718,240.96,240.91,2.16]
[1732739509152,7.85562448,240.95,240.91,2.16]
[1732739509451,6.34459126,240.99,240.91,2.16]
[1732739509647,7.85583629,240.98,240.91,2.16]
[1732739509955,2.5327,241.04,240.91,2.16]
[1732739510154,6.34459126,241.0,240.91,2.16]
[1732739510353,7.85581459,240.99,240.91,2.16]
[1732739510556,6.34459126,241.0,240.91,2.16]
[1732739510854,12.47,241.09,240.95,6.34459126]
[1732739511057,6.34459126,241.03,240.93,6.34459126]
[1732739511252,2.0717,240.98,240.91,2.16]
[1732739511451,6.34459126,241.01,240.92,6.34459126]
[1732739511857,2.0717,240.98,240.91,8.50459126]
[1732739512550,2.0717,240.98,240.91,10.57679126]
[1732739513061,6.34459126,241.01,240.91,8.50459126]
[1732739513358,6.34459126,240.99,240.92,2.16]
[1732739513656,6.34459126,240.99,240.93,2.16]
[1732739514251,1.2748,241.07,240.93,2.16]
[1732739514453,6.34459126,241.0,240.93,2.16]
[1732739514653,2.0717,240.98,240.93,2.16]
[1732739515464,2.0717,240.97,240.93,2.16]
[1732739515959,6.34459126,241.0,240.93,2.16]
[1732739517060,2.0715,240.99,240.93,8.50459126]
[1732739517261,6.34459126,241.03,240.93,8.50459126]
[1732739517555,6.34459126,241.03,240.93,2.16]
[1732739517760,2.0717,240.98,240.93,2.16]
[1732739521066,2.0717,240.98,240.93,8.50459126]
[1732739522663,2.0718,240.96,240.93,2.16]
[1732739522863,2.0718,240.96,240.93,8.50459126]
[1732739523062,6.34459126,241.01,240.93,8.50459126]
[1732739523999,2.0718,240.97,240.93,8.50459126]
[1732739524696,6.34459126,241.01,240.93,8.50459126]
[1732739525295,6.34459126,241.01,240.93,2.16]
[1732739525296,2.0719,240.95,240.93,2.16]
[1732739525494,6.34459126,241.01,240.93,2.16]
[1732739525744,6.34459126,241.0,240.93,2.16]
[1732739525897,6.34459126,241.0,240.92,6.34459126]
[1732739526198,6.34459126,240.98,240.92,2.16]
[1732739527098,2.0718,240.96,240.92,2.16]
[1732739527503,1.3003,240.99,240.92,2.16]
[1732739528410,2.0719,240.96,240.92,2.16]
[1732739528999,6.34459126,240.98,240.92,2.16]
[1732739529199,2.0719,240.95,240.92,2.16]
[1732739529719,2.0718,240.96,240.92,2.16]
[1732739530702,2.0713,241.02,240.95,2.0718]
[1732739530906,1.2748,241.07,240.98,6.34459126]
[1732739531100,1.2748,241.07,241.0,6.34459126]
[1732739531399,1.2748,241.07,241.01,2.16]
[1732739532509,2.0711,241.04,241.01,2.16]
[1732739532705,7.61939126,241.07,241.01,2.16]
[1732739533394,1.2748,241.07,241.01,2.16]
[1732739533599,32.89818065,242.68,241.02,6.34459126]
[1732739533807,7.83715408,241.09,241.02,6.34459126]
[1732739534009,6.34459126,241.12,241.02,6.34459126]
[1732739534210,2.0708,241.08,241.02,6.34459126]
[1732739534511,6.34459126,241.11,241.02,6.34459126]
[1732739535098,2.071,241.06,241.02,6.34459126]
[1732739536579,2.0708,241.07,241.02,6.34459126]
[1732739536781,6.34459126,241.12,241.04,6.34459126]
[1732739537480,2.0708,241.08,241.04,6.34459126]
[1732739537679,6.34459126,241.12,241.04,6.34459126]
[1732739538286,2.0708,241.08,241.04,6.34459126]
[1732739538888,2.0709,241.07,241.02,6.34459126]
[1732739539689,2.0709,241.06,241.01,2.16]
[1732739539884,2.0709,241.06,241.01,8.50459126]
[1732739541789,2.0708,241.08,241.02,2.16]
[1732739541997,392.57899126,241.1,241.03,2.16]
[1732739542198,392.57899126,241.1,241.04,2.16]
[1732739542786,2.0709,241.07,241.04,2.16]
[1732739543491,386.2344,241.1,241.04,2.16]
[1732739543691,2.071,241.06,241.04,2.16]
[1732739543887,392.57899126,241.1,241.04,2.16]
[1732739544088,2.0712,241.04,240.91,2.572]
[1732739544295,6.34459126,241.08,240.99,6.34459126]
[1732739544496,386.2344,241.1,241.0,2.16]
[1732739544692,2.0712,241.03,241.0,2.16]
[1732739545394,2.0711,241.05,241.0,2.16]
[1732739545596,6.34459126,241.09,241.0,2.16]
[1732739545889,7.8460052,241.08,241.0,2.16]
[1732739546090,2.0712,241.03,241.0,2.16]
[1732739546896,2.0712,241.03,240.99,6.34459126]
[1732739547096,2.0712,241.03,241.0,2.16]
[1732739547494,2.5203,241.08,241.0,2.16]
[1732739547700,6.34459126,241.07,241.0,2.16]
[1732739548499,6.34459126,241.07,240.99,2.16]
[1732739548700,6.34459126,241.05,240.99,2.16]
[1732739548915,6.34459126,241.03,240.85,3.8035]
[1732739549092,6.34459126,241.03,240.92,6.34459126]
[1732739549294,6.34459126,241.03,240.94,6.34459126]
[1732739549494,6.34459126,241.03,240.95,2.16]
[1732739549699,7.85349585,241.02,240.95,2.16]
[1732739550003,2.0717,240.97,240.95,8.50459126]
[1732739550203,2.5203,241.08,240.95,8.50459126]
[1732739550204,6.34459126,241.07,240.95,8.50459126]
[1732739550498,6.34459126,241.07,240.99,6.34459126]
[1732739550499,15.27091145,241.06,240.99,6.34459126]
[1732739550699,7.85552185,241.05,240.99,6.34459126]
[1732739550898,2.0714,241.0,240.95,2.16]
[1732739551094,2.0714,241.0,240.98,6.34459126]
[1732739551698,2.0713,241.02,240.98,6.34459126]
[1732739551906,6.34459126,241.07,240.95,4.2318]
[1732739552101,7.85534078,241.06,240.98,6.34459126]
[1732739552303,6.34459126,241.07,240.98,6.34459126]
[1732739552500,7.85637373,241.06,241.0,6.34459126]
[1732739552702,2.5203,241.08,241.01,2.16]
[1732739553006,7.85644126,241.07,241.01,2.16]
[1732739553205,2.0711,241.04,241.01,2.16]
[1732739553599,2.5203,241.08,241.01,2.16]
[1732739553798,7.85713496,241.07,241.01,2.16]
[1732739554001,2.5203,241.08,241.01,2.16]
[1732739554200,7.85800815,241.07,241.01,2.16]
[1732739554409,2.5203,241.08,241.01,2.16]
[1732739554611,7.85806785,241.07,241.01,2.16]
[1732739554805,2.5203,241.08,241.01,2.16]
[1732739555002,7.85806785,241.07,241.01,2.16]
[1732739555197,7.85894927,241.06,241.01,2.16]
[1732739555404,2.5203,241.08,241.01,2.16]
[1732739555706,7.85901152,241.07,241.02,6.34459126]
[1732739556008,2.5203,241.08,241.04,6.34459126]
[1732739556207,1.3007,241.09,241.04,6.34459126]
[1732739556401,386.2344,241.1,241.04,6.34459126]
[1732739556802,2.0708,241.08,241.04,6.34459126]
[1732739557411,2.0708,241.07,241.02,6.34459126]